[Event "Israel Team Ch Under 18"]
[Site "Jerusalem"]
[Date "2017.08.15"]
[Round "7"]
[White "Katz, Kiril"]
[Black "Shapira, Gal"]
[Result "1/2-1/2"]
[ECO "B20"]
[WhiteElo "1696"]
[BlackElo "1651"]
[Annotator "NA RC"]
[PlyCount "39"]
[EventDate "2017.??.??"]
[EventType "swiss"]
[EventCountry "ISR"]
[SourceTitle "playchess.com"]
[Source "ChessBase"]
[SourceQuality "1"]
[TimeControl "40/5400+30:1800+30"]

1. e4 c5 2. b4 e5 3. Bb2 Nc6 4. Nf3 cxb4 5. Bc4 d6 6. d4 exd4 7. Nxd4 Nf6 8. Nxc6 bxc6 9. e5 Nd5 10. Bxd5 cxd5 11. Qxd5 Be6 12. Qc6+ Bd7 13. Qe4 dxe5 14. Bxe5 Be6 15. Qc6+ Bd7 16. Qe4 Be6 17. Qc6+ Bd7 18. Qe4 f5 19. Qd5 Qe7 20. Rf1 1/2-1/2